[Event "Titled Tuesday Blitz December 27 Late 2022"]
[White "Rustemov, Alexander"]
[Black "Dzierzak, Radoslaw"]
[WhiteFideId "4119002"]
[BlackFideId "1161407"]
[WhiteElo "2525"]
[BlackElo "2220"]
[Result "0-1"]
[Round "01"]
[TimeControl "180+2"]
[Date "2022.12.27"]
[WhiteClock "0:00:36"]
[BlackClock "0:00:41"]

1. d4 {[%clk 0:02:56]}  Nf6 {[%clk 0:02:59]} 2. c4 {[%clk 0:02:56]}  e6 {[%clk 0:02:59]} 3. Nf3 {[%clk 0:02:56]}  Bb4+ {[%clk 0:02:59]} 4. Bd2 {[%clk 0:02:56]}  a5 {[%clk 0:03:00]} 5. g3 {[%clk 0:02:57]}  d6 {[%clk 0:02:59]} 6. Bg2 {[%clk 0:02:57]}  Nbd7 {[%clk 0:02:59]} 7. O-O {[%clk 0:02:57]}  e5 {[%clk 0:02:57]} 8. Bg5 {[%clk 0:02:57]}  exd4 {[%clk 0:02:56]} 9. Nxd4 {[%clk 0:02:56]}  h6 {[%clk 0:02:56]} 10. Bc1 {[%clk 0:02:53]}  O-O {[%clk 0:02:55]} 11. b3 {[%clk 0:02:52]}  c6 {[%clk 0:02:43]} 12. Bb2 {[%clk 0:02:49]}  Bc5 {[%clk 0:02:26]} 13. Nc3 {[%clk 0:02:47]}  Ne5 {[%clk 0:02:26]} 14. h3 {[%clk 0:02:44]}  Re8 {[%clk 0:02:20]} 15. e3 {[%clk 0:02:43]}  Bd7 {[%clk 0:02:19]} 16. Kh2 {[%clk 0:02:41]}  h5 {[%clk 0:02:14]} 17. Nf3 {[%clk 0:02:33]}  Qc7 {[%clk 0:02:01]} 18. Rc1 {[%clk 0:02:28]}  Rad8 {[%clk 0:01:59]} 19. Ne2 {[%clk 0:02:23]}  Nxf3+ {[%clk 0:01:57]} 20. Bxf3 {[%clk 0:02:23]}  Ne4 {[%clk 0:01:52]} 21. Nf4 {[%clk 0:02:16]}  h4 {[%clk 0:01:45]} 22. gxh4 {[%clk 0:02:10]}  d5 {[%clk 0:01:42]} 23. cxd5 {[%clk 0:02:01]}  Bd6 {[%clk 0:01:41]} 24. Bxe4 {[%clk 0:01:35]}  Bxf4+ {[%clk 0:01:38]} 25. exf4 {[%clk 0:01:35]}  Qxf4+ {[%clk 0:01:38]} 26. Kg2 {[%clk 0:01:32]}  Qxe4+ {[%clk 0:01:25]} 27. Qf3 {[%clk 0:01:31]}  Bxh3+ {[%clk 0:01:24]} 28. Kg3 {[%clk 0:01:30]}  Qxf3+ {[%clk 0:01:24]} 29. Kxf3 {[%clk 0:01:30]}  Bxf1 {[%clk 0:01:25]} 30. Rxf1 {[%clk 0:01:30]}  Rxd5 {[%clk 0:01:25]} 31. Rg1 {[%clk 0:01:27]}  Rf5+ {[%clk 0:01:23]} 32. Kg3 {[%clk 0:01:26]}  Re2 {[%clk 0:01:20]} 33. Bd4 {[%clk 0:01:24]}  Re4 {[%clk 0:01:19]} 34. Be3 {[%clk 0:01:23]}  a4 {[%clk 0:01:19]} 35. Rd1 {[%clk 0:01:21]}  Rd5 {[%clk 0:01:19]} 36. Rc1 {[%clk 0:01:21]}  axb3 {[%clk 0:01:19]} 37. axb3 {[%clk 0:01:21]}  Rb4 {[%clk 0:01:18]} 38. Rc3 {[%clk 0:01:18]}  Rdb5 {[%clk 0:01:18]} 39. Rd3 {[%clk 0:01:17]}  Rd5 {[%clk 0:01:18]} 40. Rc3 {[%clk 0:01:17]}  f6 {[%clk 0:01:16]} 41. Bc5 {[%clk 0:01:08]}  Re4 {[%clk 0:01:11]} 42. Be3 {[%clk 0:01:04]}  Kf7 {[%clk 0:01:09]} 43. f3 {[%clk 0:00:50]}  Rb4 {[%clk 0:01:09]} 44. Bc5 {[%clk 0:00:49]}  Rb5 {[%clk 0:01:08]} 45. b4 {[%clk 0:00:50]}  b6 {[%clk 0:01:07]} 46. Be3 {[%clk 0:00:48]}  Rd6 {[%clk 0:01:02]} 47. Rc4 {[%clk 0:00:47]}  Re6 {[%clk 0:01:01]} 48. Kf2 {[%clk 0:00:45]}  Ke7 {[%clk 0:00:59]} 49. Bd2 {[%clk 0:00:42]}  Kd7 {[%clk 0:00:59]} 50. Rg4 {[%clk 0:00:41]}  Re7 {[%clk 0:00:58]} 51. Rd4+ {[%clk 0:00:41]}  Rd5 {[%clk 0:00:58]} 52. Bc3 {[%clk 0:00:39]}  Rxd4 {[%clk 0:00:58]} 53. Bxd4 {[%clk 0:00:40]}  Kc7 {[%clk 0:00:57]} 54. h5 {[%clk 0:00:40]}  Rd7 {[%clk 0:00:57]} 55. Ke3 {[%clk 0:00:40]}  Rd5 {[%clk 0:00:52]} 56. h6 {[%clk 0:00:39]}  gxh6 {[%clk 0:00:53]} 57. Bxf6 {[%clk 0:00:40]}  c5 {[%clk 0:00:51]} 58. bxc5 {[%clk 0:00:40]}  Rxc5 {[%clk 0:00:50]} 59. Ke4 {[%clk 0:00:40]}  Kd7 {[%clk 0:00:50]} 60. f4 {[%clk 0:00:38]}  Ke6 {[%clk 0:00:50]} 61. Bb2 {[%clk 0:00:38]}  Rc4+ {[%clk 0:00:49]} 62. Bd4 {[%clk 0:00:36]}  h5 {[%clk 0:00:43]} 63. f5+ {[%clk 0:00:35]}  Kf7 {[%clk 0:00:42]} 64. Kd5 {[%clk 0:00:36]}  Rxd4+ {[%clk 0:00:41]} 65. Kxd4 {[%clk 0:00:36]}  h4 {[%clk 0:00:41]} 66. Ke4 {[%clk 0:00:36]}  b5 {[%clk 0:00:41]} 0-1


[Site "https://www.chess.com"]

[Event "Titled Tuesday Blitz December 27 Late 2022"]
[White "Sadilek, Peter"]
[Black "Vasquez Schroeder, Rodrigo"]
[WhiteFideId "1616439"]
[BlackFideId "3400042"]
[WhiteElo "2314"]
[BlackElo "2524"]
[Result "0-1"]
[Round "01"]
[TimeControl "180+2"]
[Date "2022.12.27"]
[WhiteClock "0:00:12"]
[BlackClock "0:01:59"]

1. d4 {[%clk 0:02:53]}  Nf6 {[%clk 0:02:57]} 2. c4 {[%clk 0:02:52]}  e6 {[%clk 0:02:58]} 3. g3 {[%clk 0:02:50]}  c5 {[%clk 0:02:57]} 4. Nf3 {[%clk 0:02:50]}  cxd4 {[%clk 0:02:57]} 5. Nxd4 {[%clk 0:02:51]}  d5 {[%clk 0:02:58]} 6. Bg2 {[%clk 0:02:52]}  e5 {[%clk 0:02:58]} 7. Nf3 {[%clk 0:02:52]}  d4 {[%clk 0:02:58]} 8. O-O {[%clk 0:02:53]}  Nc6 {[%clk 0:02:59]} 9. e3 {[%clk 0:02:54]}  Be7 {[%clk 0:02:59]} 10. exd4 {[%clk 0:02:53]}  exd4 {[%clk 0:03:00]} 11. Bf4 {[%clk 0:02:54]}  Be6 {[%clk 0:03:00]} 12. Ne5 {[%clk 0:02:46]}  Rc8 {[%clk 0:02:59]} 13. Nxc6 {[%clk 0:02:39]}  bxc6 {[%clk 0:02:59]} 14. Qa4 {[%clk 0:02:40]}  Qd7 {[%clk 0:02:57]} 15. Nd2 {[%clk 0:02:20]}  c5 {[%clk 0:02:54]} 16. Qxd7+ {[%clk 0:02:13]}  Nxd7 {[%clk 0:02:52]} 17. Bb7 {[%clk 0:02:09]}  Kd8 {[%clk 0:02:46]} 18. Bxc8 {[%clk 0:02:09]}  Kxc8 {[%clk 0:02:46]} 19. Ne4 {[%clk 0:01:56]}  Kb7 {[%clk 0:02:38]} 20. b3 {[%clk 0:01:27]}  Kc6 {[%clk 0:02:37]} 21. Rfe1 {[%clk 0:01:27]}  h6 {[%clk 0:02:37]} 22. h4 {[%clk 0:01:26]}  Rg8 {[%clk 0:02:36]} 23. Bc1 {[%clk 0:00:58]}  Ne5 {[%clk 0:02:35]} 24. Ng5 {[%clk 0:00:47]}  hxg5 {[%clk 0:02:26]} 25. Rxe5 {[%clk 0:00:46]}  gxh4 {[%clk 0:02:25]} 26. Bg5 {[%clk 0:00:43]}  Bd6 {[%clk 0:02:23]} 27. Bf4 {[%clk 0:00:30]}  Bxe5 {[%clk 0:02:19]} 28. Bxe5 {[%clk 0:00:31]}  f6 {[%clk 0:02:19]} 29. Bf4 {[%clk 0:00:30]}  g5 {[%clk 0:02:18]} 30. Re1 {[%clk 0:00:28]}  Kd7 {[%clk 0:02:12]} 31. Bd2 {[%clk 0:00:27]}  hxg3 {[%clk 0:02:09]} 32. fxg3 {[%clk 0:00:28]}  Rh8 {[%clk 0:02:08]} 33. Kg2 {[%clk 0:00:27]}  Kd6 {[%clk 0:02:06]} 34. Rf1 {[%clk 0:00:24]}  Rh6 {[%clk 0:02:06]} 35. Re1 {[%clk 0:00:19]}  Bd7 {[%clk 0:02:06]} 36. Kg1 {[%clk 0:00:12]}  Bc6 {[%clk 0:02:04]} 37. Rf1 {[%clk 0:00:12]}  Ke5 {[%clk 0:02:03]} 38. Kf2 {[%clk 0:00:11]}  Rh2+ {[%clk 0:02:00]} 39. Ke1 {[%clk 0:00:12]}  Be4 {[%clk 0:02:00]} 40. Rf2 {[%clk 0:00:12]}  Rh3 {[%clk 0:01:59]} 0-1


[Site "https://www.chess.com"]

[Event "Titled Tuesday Blitz December 27 Late 2022"]
[White "Schmidt, Harald"]
[Black "Mroziak, Maciej"]
[WhiteFideId "4648358"]
[BlackFideId "1139665"]
[WhiteElo "2347"]
[BlackElo "2338"]
[Result "1/2-1/2"]
[Round "01"]
[TimeControl "180+2"]
[Date "2022.12.27"]
[WhiteClock "0:00:07"]
[BlackClock "0:00:16"]

1. c4 {[%clk 0:03:00]}  e6 {[%clk 0:02:57]} 2. g3 {[%clk 0:02:58]}  d5 {[%clk 0:02:57]} 3. Bg2 {[%clk 0:02:58]}  Nf6 {[%clk 0:02:57]} 4. b3 {[%clk 0:02:56]}  c6 {[%clk 0:02:57]} 5. Bb2 {[%clk 0:02:55]}  Nbd7 {[%clk 0:02:58]} 6. Nf3 {[%clk 0:02:53]}  Bd6 {[%clk 0:02:58]} 7. O-O {[%clk 0:02:52]}  O-O {[%clk 0:02:59]} 8. d4 {[%clk 0:02:52]}  Qe7 {[%clk 0:02:59]} 9. Nc3 {[%clk 0:02:45]}  Re8 {[%clk 0:02:58]} 10. e3 {[%clk 0:02:42]}  b6 {[%clk 0:02:55]} 11. cxd5 {[%clk 0:02:37]}  exd5 {[%clk 0:02:55]} 12. Rc1 {[%clk 0:02:35]}  Bb7 {[%clk 0:02:54]} 13. Qd3 {[%clk 0:02:20]}  a6 {[%clk 0:02:51]} 14. Rfd1 {[%clk 0:02:16]}  Ne4 {[%clk 0:02:45]} 15. Nd2 {[%clk 0:02:13]}  Ndf6 {[%clk 0:02:39]} 16. Ndxe4 {[%clk 0:02:11]}  Nxe4 {[%clk 0:02:34]} 17. Nxe4 {[%clk 0:02:10]}  dxe4 {[%clk 0:02:34]} 18. Qc2 {[%clk 0:02:08]}  h5 {[%clk 0:02:29]} 19. Qc3 {[%clk 0:02:05]}  Bb4 {[%clk 0:02:24]} 20. Qc2 {[%clk 0:02:03]}  h4 {[%clk 0:02:23]} 21. Qc4 {[%clk 0:01:52]}  b5 {[%clk 0:02:17]} 22. Qe2 {[%clk 0:01:52]}  Qg5 {[%clk 0:02:04]} 23. a4 {[%clk 0:01:44]}  Rad8 {[%clk 0:01:57]} 24. Bc3 {[%clk 0:01:37]}  Ba3 {[%clk 0:01:47]} 25. Ra1 {[%clk 0:01:35]}  Bd6 {[%clk 0:01:43]} 26. Ba5 {[%clk 0:01:34]}  Rc8 {[%clk 0:01:39]} 27. Rdc1 {[%clk 0:01:31]}  Qf5 {[%clk 0:01:19]} 28. Bb6 {[%clk 0:01:22]}  h3 {[%clk 0:01:16]} 29. Bf1 {[%clk 0:01:20]}  Bb4 {[%clk 0:01:02]} 30. Bc5 {[%clk 0:01:17]}  a5 {[%clk 0:00:56]} 31. axb5 {[%clk 0:01:13]}  cxb5 {[%clk 0:00:56]} 32. Qxb5 {[%clk 0:01:12]}  Bc6 {[%clk 0:00:49]} 33. Qa6 {[%clk 0:01:02]}  Bd5 {[%clk 0:00:31]} 34. Bxb4 {[%clk 0:01:02]}  axb4 {[%clk 0:00:31]} 35. Rxc8 {[%clk 0:01:00]}  Rxc8 {[%clk 0:00:31]} 36. Qb5 {[%clk 0:00:50]}  Rc2 {[%clk 0:00:26]} 37. Be2 {[%clk 0:00:48]}  g5 {[%clk 0:00:19]} 38. g4 {[%clk 0:00:33]}  Qc8 {[%clk 0:00:15]} 39. Qxd5 {[%clk 0:00:29]}  Rc1+ {[%clk 0:00:16]} 40. Rxc1 {[%clk 0:00:28]}  Qxc1+ {[%clk 0:00:16]} 41. Bf1 {[%clk 0:00:28]}  Qd1 {[%clk 0:00:17]} 42. Qxg5+ {[%clk 0:00:27]}  Kf8 {[%clk 0:00:17]} 43. Qc5+ {[%clk 0:00:26]}  Kg7 {[%clk 0:00:17]} 44. Qf5 {[%clk 0:00:23]}  Qxb3 {[%clk 0:00:16]} 45. Qxe4 {[%clk 0:00:23]}  Qd1 {[%clk 0:00:16]} 46. Qe5+ {[%clk 0:00:19]}  Kf8 {[%clk 0:00:15]} 47. Qc5+ {[%clk 0:00:13]}  Kg8 {[%clk 0:00:15]} 48. Qg5+ {[%clk 0:00:12]}  Kf8 {[%clk 0:00:15]} 49. Qh6+ {[%clk 0:00:10]}  Ke8 {[%clk 0:00:15]} 50. Qxh3 {[%clk 0:00:09]}  b3 {[%clk 0:00:15]} 51. d5 {[%clk 0:00:09]}  b2 {[%clk 0:00:15]} 52. Qh8+ {[%clk 0:00:08]}  Kd7 {[%clk 0:00:15]} 53. Qxb2 {[%clk 0:00:07]}  Qxg4+ {[%clk 0:00:16]} 54. Kh1 {[%clk 0:00:06]}  Qf3+ {[%clk 0:00:15]} 55. Kg1 {[%clk 0:00:06]}  Qg4+ {[%clk 0:00:15]} 56. Kh1 {[%clk 0:00:07]}  Qf3+ {[%clk 0:00:16]} 57. Kg1 {[%clk 0:00:07]}  Qg4+ {[%clk 0:00:16]} 1/2-1/2


[Site "https://www.chess.com"]

[Event "Titled Tuesday Blitz December 27 Late 2022"]
[White "Senthil, Maran K"]
[Black "Baskakov, Egor"]
[WhiteFideId "25035681"]
[BlackFideId "24197866"]
[WhiteElo "2209"]
[BlackElo "2215"]
[Result "0-1"]
[Round "01"]
[TimeControl "180+2"]
[Date "2022.12.27"]
[WhiteClock "0:00:12"]
[BlackClock "0:01:52"]

1. d4 {[%clk 0:02:53]}  Nf6 {[%clk 0:02:59]} 2. c4 {[%clk 0:02:51]}  e6 {[%clk 0:02:59]} 3. g3 {[%clk 0:02:51]}  d5 {[%clk 0:03:00]} 4. Bg2 {[%clk 0:02:51]}  Be7 {[%clk 0:03:00]} 5. Nf3 {[%clk 0:02:52]}  O-O {[%clk 0:03:00]} 6. Qc2 {[%clk 0:02:52]}  Ne4 {[%clk 0:03:01]} 7. O-O {[%clk 0:02:51]}  f5 {[%clk 0:03:01]} 8. Nc3 {[%clk 0:02:47]}  c6 {[%clk 0:03:01]} 9. Rb1 {[%clk 0:02:47]}  Bd7 {[%clk 0:03:02]} 10. b4 {[%clk 0:02:46]}  Be8 {[%clk 0:03:02]} 11. a4 {[%clk 0:02:46]}  Nd7 {[%clk 0:03:01]} 12. Bf4 {[%clk 0:02:45]}  g5 {[%clk 0:03:00]} 13. Be3 {[%clk 0:02:39]}  Bg6 {[%clk 0:03:00]} 14. Nxe4 {[%clk 0:02:11]}  dxe4 {[%clk 0:02:57]} 15. Ne5 {[%clk 0:02:05]}  Nxe5 {[%clk 0:02:57]} 16. dxe5 {[%clk 0:02:05]}  f4 {[%clk 0:02:57]} 17. Bc5 {[%clk 0:01:55]}  e3 {[%clk 0:02:53]} 18. Be4 {[%clk 0:01:51]}  Bxe4 {[%clk 0:02:51]} 19. Qxe4 {[%clk 0:01:51]}  Bxc5 {[%clk 0:02:44]} 20. bxc5 {[%clk 0:01:52]}  exf2+ {[%clk 0:02:44]} 21. Rxf2 {[%clk 0:01:42]}  fxg3 {[%clk 0:02:44]} 22. Rxf8+ {[%clk 0:01:21]}  Qxf8 {[%clk 0:02:45]} 23. hxg3 {[%clk 0:01:05]}  Qxc5+ {[%clk 0:02:46]} 24. Kg2 {[%clk 0:01:04]}  Rf8 {[%clk 0:02:26]} 25. Rxb7 {[%clk 0:00:53]}  Qf2+ {[%clk 0:02:25]} 26. Kh3 {[%clk 0:00:49]}  Qf1+ {[%clk 0:02:25]} 27. Kg4 {[%clk 0:00:43]}  Rf5 {[%clk 0:02:25]} 28. Re7 {[%clk 0:00:11]}  a5 {[%clk 0:01:51]} 29. Rxe6 {[%clk 0:00:11]}  h5+ {[%clk 0:01:51]} 30. Kxh5 {[%clk 0:00:11]}  Qh3+ {[%clk 0:01:52]} 31. Kg6 {[%clk 0:00:12]}  Qh7# {[%clk 0:01:52]} 0-1


[Site "https://www.chess.com"]

[Event "Titled Tuesday Blitz December 27 Late 2022"]
[White "Silvestre, Christian"]
[Black "Yuan, Qingyu"]
[WhiteFideId "30956269"]
[BlackFideId "8609772"]
[WhiteElo "1942"]
[BlackElo "2373"]
[Result "0-1"]
[Round "01"]
[TimeControl "180+2"]
[Date "2022.12.27"]
[WhiteClock "0:00:08"]
[BlackClock "0:00:07"]

1. d4 {[%clk 0:02:59]}  Nf6 {[%clk 0:02:59]} 2. Bg5 {[%clk 0:03:00]}  d5 {[%clk 0:02:59]} 3. Bxf6 {[%clk 0:02:59]}  gxf6 {[%clk 0:03:00]} 4. e3 {[%clk 0:03:00]}  e5 {[%clk 0:02:55]} 5. Nf3 {[%clk 0:02:54]}  Nc6 {[%clk 0:02:42]} 6. Bb5 {[%clk 0:02:49]}  Bd6 {[%clk 0:02:28]} 7. Nc3 {[%clk 0:02:32]}  a6 {[%clk 0:02:22]} 8. Be2 {[%clk 0:02:26]}  Be6 {[%clk 0:02:18]} 9. g3 {[%clk 0:02:15]}  Ne7 {[%clk 0:02:10]} 10. a3 {[%clk 0:02:08]}  b5 {[%clk 0:02:05]} 11. e4 {[%clk 0:02:06]}  c6 {[%clk 0:01:53]} 12. dxe5 {[%clk 0:02:02]}  fxe5 {[%clk 0:01:53]} 13. exd5 {[%clk 0:01:57]}  cxd5 {[%clk 0:01:49]} 14. Ng5 {[%clk 0:01:57]}  Qd7 {[%clk 0:01:34]} 15. O-O {[%clk 0:01:37]}  O-O {[%clk 0:01:20]} 16. Qd3 {[%clk 0:01:18]}  Bf5 {[%clk 0:01:14]} 17. Qd2 {[%clk 0:01:05]}  Bc7 {[%clk 0:01:02]} 18. Rad1 {[%clk 0:01:03]}  Rad8 {[%clk 0:01:02]} 19. Bf3 {[%clk 0:00:48]}  e4 {[%clk 0:00:58]} 20. Bg2 {[%clk 0:00:48]}  f6 {[%clk 0:00:48]} 21. Ngxe4 {[%clk 0:00:27]}  dxe4 {[%clk 0:00:45]} 22. Qh6 {[%clk 0:00:27]}  Qe6 {[%clk 0:00:39]} 23. Rde1 {[%clk 0:00:25]}  Rd4 {[%clk 0:00:35]} 24. Ne2 {[%clk 0:00:24]}  Rc4 {[%clk 0:00:35]} 25. c3 {[%clk 0:00:23]}  Qf7 {[%clk 0:00:27]} 26. Nd4 {[%clk 0:00:22]}  Qg6 {[%clk 0:00:22]} 27. Qd2 {[%clk 0:00:17]}  Rd8 {[%clk 0:00:20]} 28. Nxf5 {[%clk 0:00:15]}  Qxf5 {[%clk 0:00:17]} 29. Qc2 {[%clk 0:00:13]}  Qg5 {[%clk 0:00:09]} 30. Rxe4 {[%clk 0:00:13]}  Ng6 {[%clk 0:00:07]} 31. Rxc4 {[%clk 0:00:12]}  bxc4 {[%clk 0:00:08]} 32. Qe2 {[%clk 0:00:13]}  Qc5 {[%clk 0:00:07]} 33. Qe6+ {[%clk 0:00:13]}  Kg7 {[%clk 0:00:08]} 34. Re1 {[%clk 0:00:12]}  Rd2 {[%clk 0:00:07]} 35. Rf1 {[%clk 0:00:12]}  Bb6 {[%clk 0:00:06]} 36. Bd5 {[%clk 0:00:12]}  Rxf2 {[%clk 0:00:06]} 37. Rxf2 {[%clk 0:00:08]}  Qxf2+ {[%clk 0:00:07]} 38. Kh1 {[%clk 0:00:08]}  Qf1# {[%clk 0:00:07]} 0-1


[Site "https://www.chess.com"]

[Event "Titled Tuesday Blitz December 27 Late 2022"]
[White "Stanojevic, Ilija"]
[Black "Fishbein, Alexander"]
[WhiteFideId "959995"]
[BlackFideId "2000377"]
[WhiteElo "2142"]
[BlackElo "2366"]
[Result "0-1"]
[Round "01"]
[TimeControl "180+2"]
[Date "2022.12.27"]
[WhiteClock "0:00:15"]
[BlackClock "0:01:14"]

1. d4 {[%clk 0:02:57]}  d5 {[%clk 0:02:58]} 2. c4 {[%clk 0:02:56]}  c6 {[%clk 0:02:58]} 3. Nf3 {[%clk 0:02:55]}  Nf6 {[%clk 0:02:58]} 4. Nc3 {[%clk 0:02:55]}  a6 {[%clk 0:02:58]} 5. e3 {[%clk 0:02:51]}  b5 {[%clk 0:02:58]} 6. c5 {[%clk 0:02:49]}  Bg4 {[%clk 0:02:56]} 7. h3 {[%clk 0:02:48]}  Bxf3 {[%clk 0:02:55]} 8. gxf3 {[%clk 0:02:49]}  e5 {[%clk 0:02:54]} 9. Rb1 {[%clk 0:01:56]}  exd4 {[%clk 0:02:53]} 10. exd4 {[%clk 0:01:56]}  g6 {[%clk 0:02:47]} 11. Be3 {[%clk 0:01:51]}  Bg7 {[%clk 0:02:38]} 12. Bd3 {[%clk 0:01:48]}  O-O {[%clk 0:02:37]} 13. Qd2 {[%clk 0:01:37]}  Re8 {[%clk 0:02:36]} 14. Kd1 {[%clk 0:01:34]}  Nbd7 {[%clk 0:02:35]} 15. Kc2 {[%clk 0:01:30]}  Nf8 {[%clk 0:02:34]} 16. h4 {[%clk 0:01:29]}  Nh5 {[%clk 0:02:34]} 17. Rbg1 {[%clk 0:01:28]}  Ne6 {[%clk 0:02:33]} 18. Ne2 {[%clk 0:01:23]}  Qf6 {[%clk 0:02:33]} 19. f4 {[%clk 0:01:03]}  Nxc5 {[%clk 0:02:11]} 20. dxc5 {[%clk 0:01:02]}  Qxb2+ {[%clk 0:02:11]} 21. Kd1 {[%clk 0:01:02]}  Qa1+ {[%clk 0:02:11]} 22. Nc1 {[%clk 0:01:00]}  Bd4 {[%clk 0:01:58]} 23. f5 {[%clk 0:00:54]}  Bxe3 {[%clk 0:01:57]} 24. fxe3 {[%clk 0:00:53]}  Qe5 {[%clk 0:01:53]} 25. fxg6 {[%clk 0:00:50]}  hxg6 {[%clk 0:01:53]} 26. Bxg6 {[%clk 0:00:42]}  fxg6 {[%clk 0:01:51]} 27. Rxg6+ {[%clk 0:00:43]}  Ng7 {[%clk 0:01:41]} 28. Rhg1 {[%clk 0:00:39]}  Re7 {[%clk 0:01:41]} 29. Nd3 {[%clk 0:00:34]}  Qh5+ {[%clk 0:01:39]} 30. Kc2 {[%clk 0:00:33]}  Rf8 {[%clk 0:01:31]} 31. Qg2 {[%clk 0:00:32]}  Rff7 {[%clk 0:01:25]} 32. Nf4 {[%clk 0:00:24]}  Qf5+ {[%clk 0:01:25]} 33. Kd2 {[%clk 0:00:22]}  Kf8 {[%clk 0:01:22]} 34. h5 {[%clk 0:00:22]}  d4 {[%clk 0:01:20]} 35. Qxc6 {[%clk 0:00:16]}  dxe3+ {[%clk 0:01:19]} 36. Ke2 {[%clk 0:00:16]}  Qxf4 {[%clk 0:01:15]} 37. h6 {[%clk 0:00:15]}  Qf2+ {[%clk 0:01:14]} 38. Kd3 {[%clk 0:00:15]}  Qd2# {[%clk 0:01:14]} 0-1


[Site "https://www.chess.com"]

[Event "Titled Tuesday Blitz December 27 Late 2022"]
[White "Toniutti, Ezio"]
[Black "Fernandez Hernandez, Gerardo"]
[WhiteFideId "113034"]
[BlackFideId "2207400"]
[WhiteElo "2224"]
[BlackElo "2181"]
[Result "1-0"]
[Round "01"]
[TimeControl "180+2"]
[Date "2022.12.27"]
[WhiteClock "0:00:32"]
[BlackClock "0:00:02"]

1. d4 {[%clk 0:02:59]}  Nf6 {[%clk 0:02:59]} 2. c4 {[%clk 0:02:59]}  c5 {[%clk 0:02:58]} 3. d5 {[%clk 0:02:59]}  b5 {[%clk 0:02:58]} 4. cxb5 {[%clk 0:03:00]}  a6 {[%clk 0:02:59]} 5. e3 {[%clk 0:03:00]}  g6 {[%clk 0:02:51]} 6. Nc3 {[%clk 0:03:00]}  Bg7 {[%clk 0:02:51]} 7. a4 {[%clk 0:02:59]}  d6 {[%clk 0:02:48]} 8. Nf3 {[%clk 0:02:59]}  O-O {[%clk 0:02:47]} 9. e4 {[%clk 0:02:59]}  Nbd7 {[%clk 0:02:25]} 10. Be2 {[%clk 0:02:57]}  axb5 {[%clk 0:02:19]} 11. Bxb5 {[%clk 0:02:57]}  Ba6 {[%clk 0:02:20]} 12. Bd2 {[%clk 0:02:57]}  Ng4 {[%clk 0:02:13]} 13. O-O {[%clk 0:02:32]}  Bxb5 {[%clk 0:02:12]} 14. axb5 {[%clk 0:02:30]}  Qb6 {[%clk 0:02:01]} 15. Qe2 {[%clk 0:02:28]}  Rfb8 {[%clk 0:01:52]} 16. h3 {[%clk 0:02:24]}  Nge5 {[%clk 0:01:51]} 17. Nxe5 {[%clk 0:02:24]}  Nxe5 {[%clk 0:01:46]} 18. Kh2 {[%clk 0:02:22]}  c4 {[%clk 0:01:39]} 19. Be3 {[%clk 0:02:22]}  Qc7 {[%clk 0:01:23]} 20. b6 {[%clk 0:02:18]}  Qd7 {[%clk 0:01:17]} 21. f4 {[%clk 0:01:52]}  Nd3 {[%clk 0:01:16]} 22. Rxa8 {[%clk 0:01:45]}  Rxa8 {[%clk 0:01:15]} 23. Rb1 {[%clk 0:01:39]}  h5 {[%clk 0:00:48]} 24. Qc2 {[%clk 0:01:22]}  Bh6 {[%clk 0:00:37]} 25. Qd2 {[%clk 0:01:21]}  f5 {[%clk 0:00:22]} 26. b3 {[%clk 0:01:15]}  fxe4 {[%clk 0:00:16]} 27. Nxe4 {[%clk 0:01:15]}  Nc5 {[%clk 0:00:06]} 28. Nxc5 {[%clk 0:01:15]}  dxc5 {[%clk 0:00:05]} 29. bxc4 {[%clk 0:01:14]}  Qd6 {[%clk 0:00:05]} 30. Kh1 {[%clk 0:01:05]}  Rb8 {[%clk 0:00:04]} 31. b7 {[%clk 0:01:04]}  Qc7 {[%clk 0:00:03]} 32. Qd3 {[%clk 0:01:01]}  Kg7 {[%clk 0:00:02]} 33. f5 {[%clk 0:00:42]}  Bxe3 {[%clk 0:00:01]} 34. Qxe3 {[%clk 0:00:41]}  Rxb7 {[%clk 0:00:02]} 35. Rf1 {[%clk 0:00:32]} 1-0


[Site "https://www.chess.com"]

[Event "Titled Tuesday Blitz December 27 Late 2022"]
[White "Vaibhav Jayant Raut"]
[Black "Andrews, Todd"]
[WhiteFideId "5089034"]
[BlackFideId "2012456"]
[WhiteElo "2237"]
[BlackElo "2220"]
[Result "1-0"]
[Round "01"]
[TimeControl "180+2"]
[Date "2022.12.27"]
[WhiteClock "0:00:16"]
[BlackClock "0:00:13"]

1. Nf3 {[%clk 0:02:59]}  c5 {[%clk 0:02:59]} 2. g3 {[%clk 0:02:57]}  b6 {[%clk 0:02:59]} 3. Bg2 {[%clk 0:02:56]}  Bb7 {[%clk 0:03:00]} 4. O-O {[%clk 0:02:56]}  e6 {[%clk 0:02:59]} 5. d3 {[%clk 0:02:56]}  Nf6 {[%clk 0:02:59]} 6. Nbd2 {[%clk 0:02:57]}  Be7 {[%clk 0:02:59]} 7. e4 {[%clk 0:02:57]}  O-O {[%clk 0:02:59]} 8. a4 {[%clk 0:02:57]}  d5 {[%clk 0:02:56]} 9. exd5 {[%clk 0:02:57]}  Nxd5 {[%clk 0:02:51]} 10. Re1 {[%clk 0:02:56]}  Nc6 {[%clk 0:02:51]} 11. h4 {[%clk 0:02:56]}  Re8 {[%clk 0:02:47]} 12. Nc4 {[%clk 0:02:55]}  Bf6 {[%clk 0:02:43]} 13. h5 {[%clk 0:02:54]}  h6 {[%clk 0:02:41]} 14. Nfd2 {[%clk 0:02:54]}  Qc7 {[%clk 0:02:29]} 15. Ne4 {[%clk 0:02:52]}  Be7 {[%clk 0:02:27]} 16. Qg4 {[%clk 0:02:50]}  Bf8 {[%clk 0:01:52]} 17. Qd1 {[%clk 0:02:00]}  Rad8 {[%clk 0:01:36]} 18. c3 {[%clk 0:01:49]}  f5 {[%clk 0:01:17]} 19. Ned2 {[%clk 0:01:47]}  Qf7 {[%clk 0:01:14]} 20. Qe2 {[%clk 0:01:42]}  Nf6 {[%clk 0:01:02]} 21. a5 {[%clk 0:01:40]}  b5 {[%clk 0:01:00]} 22. a6 {[%clk 0:01:27]}  Ba8 {[%clk 0:00:43]} 23. Na5 {[%clk 0:01:22]}  Nxa5 {[%clk 0:00:37]} 24. Bxa8 {[%clk 0:01:22]}  Rxa8 {[%clk 0:00:36]} 25. Rxa5 {[%clk 0:01:23]}  Qd7 {[%clk 0:00:33]} 26. Nf3 {[%clk 0:01:21]}  Bd6 {[%clk 0:00:29]} 27. Ne5 {[%clk 0:01:12]}  Bxe5 {[%clk 0:00:26]} 28. Qxe5 {[%clk 0:01:13]}  Qxd3 {[%clk 0:00:20]} 29. Qxc5 {[%clk 0:01:11]}  Qf3 {[%clk 0:00:19]} 30. Qxb5 {[%clk 0:00:58]}  Qxh5 {[%clk 0:00:19]} 31. Qc6 {[%clk 0:00:55]}  Ng4 {[%clk 0:00:18]} 32. Qg2 {[%clk 0:00:55]}  e5 {[%clk 0:00:17]} 33. f3 {[%clk 0:00:52]}  Nf6 {[%clk 0:00:17]} 34. Raxe5 {[%clk 0:00:52]}  Rxe5 {[%clk 0:00:17]} 35. Rxe5 {[%clk 0:00:52]}  Rd8 {[%clk 0:00:18]} 36. Re1 {[%clk 0:00:53]}  Nd5 {[%clk 0:00:16]} 37. Qe2 {[%clk 0:00:50]}  Kh7 {[%clk 0:00:15]} 38. Rd1 {[%clk 0:00:48]}  Re8 {[%clk 0:00:13]} 39. Qf2 {[%clk 0:00:46]}  Nf6 {[%clk 0:00:13]} 40. Bf4 {[%clk 0:00:45]}  Qh3 {[%clk 0:00:13]} 41. Qf1 {[%clk 0:00:42]}  Qh5 {[%clk 0:00:13]} 42. Qg2 {[%clk 0:00:41]}  g5 {[%clk 0:00:13]} 43. Bc7 {[%clk 0:00:33]}  g4 {[%clk 0:00:13]} 44. f4 {[%clk 0:00:29]}  Qf7 {[%clk 0:00:12]} 45. Be5 {[%clk 0:00:28]}  Ne4 {[%clk 0:00:12]} 46. Qe2 {[%clk 0:00:24]}  Re6 {[%clk 0:00:12]} 47. Qb5 {[%clk 0:00:23]}  Re7 {[%clk 0:00:12]} 48. Qb4 {[%clk 0:00:12]}  Rd7 {[%clk 0:00:11]} 49. Rxd7 {[%clk 0:00:12]}  Qxd7 {[%clk 0:00:12]} 50. Qb7 {[%clk 0:00:12]}  Nc5 {[%clk 0:00:10]} 51. Qxd7+ {[%clk 0:00:12]}  Nxd7 {[%clk 0:00:11]} 52. Bd4 {[%clk 0:00:13]}  Kg6 {[%clk 0:00:11]} 53. Bxa7 {[%clk 0:00:13]}  Kf7 {[%clk 0:00:11]} 54. Bf2 {[%clk 0:00:14]}  Ke6 {[%clk 0:00:12]} 55. a7 {[%clk 0:00:15]}  Kd5 {[%clk 0:00:13]} 56. a8=Q+ {[%clk 0:00:15]}  Ke6 {[%clk 0:00:13]} 57. Qg8+ {[%clk 0:00:16]} 1-0


[Site "https://www.chess.com"]